[Event "Titled Tuesday Blitz October 31 Early 2023"]
[White "Svane, Frederik"]
[Black "mind1mover"]
[WhiteFideId "12923044"]
[WhiteElo "2879"]
[BlackElo "2776"]
[Result "1-0"]
[Round "9"]
[TimeControl "180+1"]
[Date "2023.10.31"]
[WhiteClock "0:00:28"]
[BlackClock "0:00:00"]
[Board "17"]

1. g3 {[%clk 0:03:00]}  Nc6 {[%clk 0:02:54]} 2. Bg2 {[%clk 0:03:01]}  Nf6 {[%clk 0:02:54]} 3. d4 {[%clk 0:03:00]}  g6 {[%clk 0:02:51]} 4. e4 {[%clk 0:03:00]}  d6 {[%clk 0:02:52]} 5. Nc3 {[%clk 0:03:00]}  a6 {[%clk 0:02:50]} 6. Nge2 {[%clk 0:03:00]}  Bg7 {[%clk 0:02:50]} 7. O-O {[%clk 0:03:01]}  O-O {[%clk 0:02:50]} 8. h3 {[%clk 0:03:01]}  e5 {[%clk 0:02:48]} 9. Be3 {[%clk 0:03:02]}  Re8 {[%clk 0:02:36]} 10. Qd2 {[%clk 0:03:00]}  exd4 {[%clk 0:02:30]} 11. Nxd4 {[%clk 0:03:00]}  Ne5 {[%clk 0:02:30]} 12. Qe2 {[%clk 0:02:25]}  c5 {[%clk 0:02:28]} 13. Nf3 {[%clk 0:02:23]}  Nxf3+ {[%clk 0:02:19]} 14. Qxf3 {[%clk 0:02:23]}  Be6 {[%clk 0:02:15]} 15. Rad1 {[%clk 0:02:21]}  Qc7 {[%clk 0:02:05]} 16. b3 {[%clk 0:02:07]}  Nd7 {[%clk 0:01:26]} 17. Nd5 {[%clk 0:02:07]}  Qa5 {[%clk 0:01:23]} 18. a4 {[%clk 0:01:53]}  b5 {[%clk 0:01:10]} 19. axb5 {[%clk 0:01:50]}  axb5 {[%clk 0:01:11]} 20. Bf4 {[%clk 0:01:50]}  Ne5 {[%clk 0:01:05]} 21. Qe3 {[%clk 0:01:37]}  Qd8 {[%clk 0:00:25]} 22. Bg5 {[%clk 0:01:35]}  f6 {[%clk 0:00:25]} 23. Bh6 {[%clk 0:01:35]}  Nc6 {[%clk 0:00:18]} 24. Bxg7 {[%clk 0:01:34]}  Kxg7 {[%clk 0:00:19]} 25. Rd2 {[%clk 0:01:33]}  Ra2 {[%clk 0:00:14]} 26. Nc3 {[%clk 0:01:29]}  Ra5 {[%clk 0:00:11]} 27. Rfd1 {[%clk 0:01:30]}  Nd4 {[%clk 0:00:11]} 28. Ne2 {[%clk 0:01:27]}  Nxe2+ {[%clk 0:00:11]} 29. Qxe2 {[%clk 0:01:28]}  Ra6 {[%clk 0:00:11]} 30. Qxb5 {[%clk 0:01:28]}  Rb6 {[%clk 0:00:11]} 31. Qa5 {[%clk 0:01:25]}  Qb8 {[%clk 0:00:09]} 32. Rd3 {[%clk 0:01:19]}  c4 {[%clk 0:00:08]} 33. bxc4 {[%clk 0:01:15]}  Bxc4 {[%clk 0:00:09]} 34. Rd4 {[%clk 0:01:16]}  Bf7 {[%clk 0:00:08]} 35. Qd2 {[%clk 0:01:16]}  Rc8 {[%clk 0:00:06]} 36. h4 {[%clk 0:01:12]}  Rb2 {[%clk 0:00:06]} 37. Rc1 {[%clk 0:01:06]}  Qc7 {[%clk 0:00:02]} 38. Rxd6 {[%clk 0:00:44]}  Rxc2 {[%clk 0:00:03]} 39. Rxc2 {[%clk 0:00:45]}  Qxc2 {[%clk 0:00:03]} 40. Qd4 {[%clk 0:00:46]}  Qc1+ {[%clk 0:00:02]} 41. Kh2 {[%clk 0:00:45]}  Qc3 {[%clk 0:00:03]} 42. Qb6 {[%clk 0:00:44]}  Re8 {[%clk 0:00:02]} 43. Rd7 {[%clk 0:00:43]}  Qe5 {[%clk 0:00:01]} 44. Qa7 {[%clk 0:00:40]}  Rf8 {[%clk 0:00:01]} 45. Qb7 {[%clk 0:00:36]}  Kg8 {[%clk 0:00:01]} 46. Bf1 {[%clk 0:00:36]}  Qc3 {[%clk 0:00:00]} 47. Kg2 {[%clk 0:00:28]} 1-0


[Site "https://www.chess.com"]

[Event "Titled Tuesday Blitz October 31 Early 2023"]
[White "Kazakouski, Valery"]
[Black "Chinguun, Sumiya"]
[WhiteFideId "13507443"]
[BlackFideId "4902572"]
[WhiteElo "2878"]
[BlackElo "2665"]
[Result "0-1"]
[Round "9"]
[TimeControl "180+1"]
[Date "2023.10.31"]
[WhiteClock "0:00:03"]
[BlackClock "0:00:41"]
[Board "18"]

1. Nf3 {[%clk 0:03:00]}  Nf6 {[%clk 0:02:59]} 2. c4 {[%clk 0:03:01]}  g6 {[%clk 0:03:00]} 3. d4 {[%clk 0:03:01]}  Bg7 {[%clk 0:03:00]} 4. g3 {[%clk 0:03:01]}  O-O {[%clk 0:03:00]} 5. Bg2 {[%clk 0:03:02]}  d6 {[%clk 0:03:01]} 6. O-O {[%clk 0:03:02]}  c6 {[%clk 0:03:01]} 7. Nc3 {[%clk 0:03:02]}  Bf5 {[%clk 0:03:02]} 8. Ng5 {[%clk 0:03:02]}  h6 {[%clk 0:03:02]} 9. e4 {[%clk 0:03:03]}  Bg4 {[%clk 0:03:02]} 10. Nf3 {[%clk 0:03:03]}  Nbd7 {[%clk 0:02:59]} 11. h3 {[%clk 0:03:03]}  Bxf3 {[%clk 0:02:59]} 12. Bxf3 {[%clk 0:03:04]}  e5 {[%clk 0:02:59]} 13. d5 {[%clk 0:03:04]}  c5 {[%clk 0:02:56]} 14. a3 {[%clk 0:03:01]}  Nh7 {[%clk 0:02:56]} 15. b4 {[%clk 0:02:56]}  Rc8 {[%clk 0:02:44]} 16. Be2 {[%clk 0:02:56]}  f5 {[%clk 0:02:35]} 17. Kg2 {[%clk 0:02:50]}  f4 {[%clk 0:02:31]} 18. Nb5 {[%clk 0:02:47]}  Qb6 {[%clk 0:02:24]} 19. Bg4 {[%clk 0:02:42]}  Nhf6 {[%clk 0:02:12]} 20. Be6+ {[%clk 0:02:39]}  Kh7 {[%clk 0:02:12]} 21. bxc5 {[%clk 0:02:31]}  Rxc5 {[%clk 0:02:11]} 22. Qd3 {[%clk 0:01:30]}  a6 {[%clk 0:01:45]} 23. Nc3 {[%clk 0:01:29]}  Qb3 {[%clk 0:01:42]} 24. Bd2 {[%clk 0:01:15]}  Qxc4 {[%clk 0:01:29]} 25. Qxc4 {[%clk 0:01:05]}  Rxc4 {[%clk 0:01:30]} 26. Bxd7 {[%clk 0:01:05]}  Nxd7 {[%clk 0:01:29]} 27. Rfb1 {[%clk 0:00:54]}  b5 {[%clk 0:01:26]} 28. Rb4 {[%clk 0:00:28]}  Rfc8 {[%clk 0:01:23]} 29. Rxc4 {[%clk 0:00:27]}  Rxc4 {[%clk 0:01:22]} 30. f3 {[%clk 0:00:28]}  Nc5 {[%clk 0:01:17]} 31. Rb1 {[%clk 0:00:28]}  h5 {[%clk 0:01:14]} 32. g4 {[%clk 0:00:27]}  Bf6 {[%clk 0:01:11]} 33. Kf1 {[%clk 0:00:27]}  Bd8 {[%clk 0:01:10]} 34. Rb4 {[%clk 0:00:20]}  Ba5 {[%clk 0:01:09]} 35. Rxc4 {[%clk 0:00:20]}  bxc4 {[%clk 0:01:09]} 36. Ke2 {[%clk 0:00:18]}  Nb3 {[%clk 0:01:09]} 37. Nb1 {[%clk 0:00:19]}  Nxd2 {[%clk 0:01:08]} 38. Nxd2 {[%clk 0:00:19]}  Bxd2 {[%clk 0:00:39]} 39. Kxd2 {[%clk 0:00:20]}  hxg4 {[%clk 0:00:39]} 40. hxg4 {[%clk 0:00:21]}  Kh6 {[%clk 0:00:40]} 41. Kc3 {[%clk 0:00:18]}  Kg5 {[%clk 0:00:40]} 42. Kxc4 {[%clk 0:00:03]}  Kh4 {[%clk 0:00:41]} 0-1


[Site "https://www.chess.com"]

[Event "Titled Tuesday Blitz October 31 Early 2023"]
[White "Krzyzanowski, Marcin"]
[Black "Galchenko, Matvey"]
[WhiteFideId "1132199"]
[BlackFideId "24175480"]
[WhiteElo "2751"]
[BlackElo "2918"]
[Result "0-1"]
[Round "9"]
[TimeControl "180+1"]
[Date "2023.10.31"]
[WhiteClock "0:00:01"]
[BlackClock "0:00:33"]
[Board "19"]

1. e4 {[%clk 0:03:00]}  e6 {[%clk 0:02:59]} 2. d4 {[%clk 0:02:59]}  d5 {[%clk 0:03:00]} 3. Nc3 {[%clk 0:02:59]}  Bb4 {[%clk 0:03:00]} 4. exd5 {[%clk 0:02:55]}  exd5 {[%clk 0:03:01]} 5. Bd3 {[%clk 0:02:55]}  Nc6 {[%clk 0:03:01]} 6. a3 {[%clk 0:02:55]}  Ba5 {[%clk 0:03:01]} 7. Ne2 {[%clk 0:02:51]}  Nge7 {[%clk 0:03:00]} 8. O-O {[%clk 0:02:50]}  O-O {[%clk 0:03:01]} 9. Ng3 {[%clk 0:02:43]}  Re8 {[%clk 0:02:51]} 10. Qh5 {[%clk 0:02:35]}  Ng6 {[%clk 0:02:20]} 11. Bg5 {[%clk 0:02:07]}  Qd6 {[%clk 0:02:06]} 12. b4 {[%clk 0:01:48]}  Bb6 {[%clk 0:02:05]} 13. Nb5 {[%clk 0:01:49]}  Qf8 {[%clk 0:02:02]} 14. Be3 {[%clk 0:01:22]}  a6 {[%clk 0:01:40]} 15. Nc3 {[%clk 0:01:22]}  Bxd4 {[%clk 0:01:41]} 16. Bxd4 {[%clk 0:01:18]}  Nxd4 {[%clk 0:01:41]} 17. Nxd5 {[%clk 0:01:05]}  Qd6 {[%clk 0:01:41]} 18. Ne3 {[%clk 0:00:56]}  Bd7 {[%clk 0:01:35]} 19. Rad1 {[%clk 0:00:53]}  Ba4 {[%clk 0:01:08]} 20. Bxg6 {[%clk 0:00:39]}  hxg6 {[%clk 0:01:02]} 21. Qg4 {[%clk 0:00:36]}  Rad8 {[%clk 0:00:52]} 22. c3 {[%clk 0:00:13]}  Bxd1 {[%clk 0:00:51]} 23. Rxd1 {[%clk 0:00:14]}  Ne2+ {[%clk 0:00:40]} 24. Qxe2 {[%clk 0:00:07]}  Qxd1+ {[%clk 0:00:39]} 25. Nxd1 {[%clk 0:00:02]}  Rxe2 {[%clk 0:00:39]} 26. Kf1 {[%clk 0:00:02]}  Ra2 {[%clk 0:00:34]} 27. Ne3 {[%clk 0:00:02]}  Rxa3 {[%clk 0:00:34]} 28. Ne4 {[%clk 0:00:03]}  Re8 {[%clk 0:00:33]} 29. Nc5 {[%clk 0:00:03]}  b6 {[%clk 0:00:33]} 30. Nd3 {[%clk 0:00:02]}  Rxc3 {[%clk 0:00:33]} 31. Nf4 {[%clk 0:00:03]}  Rcxe3 {[%clk 0:00:32]} 32. fxe3 {[%clk 0:00:04]}  Rxe3 {[%clk 0:00:32]} 33. Nd5 {[%clk 0:00:04]}  Rb3 {[%clk 0:00:33]} 34. Ke2 {[%clk 0:00:04]}  c5 {[%clk 0:00:30]} 35. bxc5 {[%clk 0:00:03]}  bxc5 {[%clk 0:00:31]} 36. g3 {[%clk 0:00:02]}  a5 {[%clk 0:00:32]} 37. Kd2 {[%clk 0:00:02]}  a4 {[%clk 0:00:33]} 38. Kc2 {[%clk 0:00:03]}  c4 {[%clk 0:00:33]} 39. Ne7+ {[%clk 0:00:03]}  Kf8 {[%clk 0:00:33]} 40. Nd5 {[%clk 0:00:04]}  a3 {[%clk 0:00:33]} 41. Nf4 {[%clk 0:00:01]}  a2 {[%clk 0:00:33]} 0-1


[Site "https://www.chess.com"]

[Event "Titled Tuesday Blitz October 31 Early 2023"]
[White "Csonka, Balazs"]
[Black "Bharath Subramaniyam H"]
[WhiteFideId "742910"]
[BlackFideId "46634827"]
[WhiteElo "2735"]
[BlackElo "2899"]
[Result "0-1"]
[Round "9"]
[TimeControl "180+1"]
[Date "2023.10.31"]
[WhiteClock "0:00:11"]
[BlackClock "0:01:50"]
[Board "20"]

1. d4 {[%clk 0:03:00]}  d5 {[%clk 0:02:43]} 2. c4 {[%clk 0:02:59]}  c6 {[%clk 0:02:43]} 3. Nf3 {[%clk 0:02:55]}  Nf6 {[%clk 0:02:43]} 4. Nc3 {[%clk 0:02:55]}  dxc4 {[%clk 0:02:42]} 5. a4 {[%clk 0:02:54]}  Bf5 {[%clk 0:02:43]} 6. Ne5 {[%clk 0:02:50]}  Nbd7 {[%clk 0:02:43]} 7. Nxc4 {[%clk 0:02:49]}  Qc7 {[%clk 0:02:44]} 8. Qd2 {[%clk 0:02:50]}  g6 {[%clk 0:02:43]} 9. f3 {[%clk 0:02:44]}  e5 {[%clk 0:02:39]} 10. dxe5 {[%clk 0:02:40]}  Nxe5 {[%clk 0:02:34]} 11. e4 {[%clk 0:02:18]}  Be6 {[%clk 0:02:30]} 12. Nxe5 {[%clk 0:02:15]}  Qxe5 {[%clk 0:02:31]} 13. Qf4 {[%clk 0:02:15]}  Bd6 {[%clk 0:02:27]} 14. Qxe5 {[%clk 0:02:11]}  Bxe5 {[%clk 0:02:28]} 15. Bd3 {[%clk 0:02:10]}  O-O-O {[%clk 0:02:27]} 16. Ke2 {[%clk 0:02:07]}  Nh5 {[%clk 0:02:21]} 17. g3 {[%clk 0:02:00]}  Rhe8 {[%clk 0:02:21]} 18. Be3 {[%clk 0:01:40]}  Bxg3 {[%clk 0:02:13]} 19. hxg3 {[%clk 0:01:01]}  Nxg3+ {[%clk 0:02:11]} 20. Kd2 {[%clk 0:01:02]}  Nxh1 {[%clk 0:02:12]} 21. Kc2 {[%clk 0:01:02]}  Bb3+ {[%clk 0:02:08]} 22. Kxb3 {[%clk 0:01:02]}  Rxd3 {[%clk 0:02:09]} 23. Bxa7 {[%clk 0:00:51]}  Ng3 {[%clk 0:02:06]} 24. a5 {[%clk 0:00:25]}  Rxf3 {[%clk 0:02:05]} 25. a6 {[%clk 0:00:25]}  Nxe4 {[%clk 0:02:02]} 26. Bd4 {[%clk 0:00:26]}  bxa6 {[%clk 0:02:02]} 27. Rxa6 {[%clk 0:00:25]}  c5 {[%clk 0:01:53]} 28. Bg7 {[%clk 0:00:11]}  Kb7 {[%clk 0:01:50]} 0-1


[Site "https://www.chess.com"]

[Event "Titled Tuesday Blitz October 31 Early 2023"]
[White "BardArtem"]
[Black "Sattarov, Bobir"]
[BlackFideId "14203081"]
[WhiteElo "2710"]
[BlackElo "2815"]
[Result "1-0"]
[Round "9"]
[TimeControl "180+1"]
[Date "2023.10.31"]
[WhiteClock "0:00:16"]
[BlackClock "0:00:01"]
[Board "23"]

1. e4 {[%clk 0:03:00]}  e5 {[%clk 0:02:59]} 2. d4 {[%clk 0:02:59]}  exd4 {[%clk 0:02:59]} 3. Qxd4 {[%clk 0:03:00]}  Nc6 {[%clk 0:02:59]} 4. Qd3 {[%clk 0:03:00]}  Nf6 {[%clk 0:02:58]} 5. Nc3 {[%clk 0:03:00]}  Bb4 {[%clk 0:02:48]} 6. Bd2 {[%clk 0:02:59]}  d6 {[%clk 0:02:42]} 7. Nge2 {[%clk 0:02:59]}  O-O {[%clk 0:02:42]} 8. O-O-O {[%clk 0:02:58]}  Ne5 {[%clk 0:02:37]} 9. Qg3 {[%clk 0:02:58]}  Nh5 {[%clk 0:02:35]} 10. Qg5 {[%clk 0:02:50]}  Qxg5 {[%clk 0:02:33]} 11. Bxg5 {[%clk 0:02:49]}  h6 {[%clk 0:02:28]} 12. Bd2 {[%clk 0:02:45]}  Be6 {[%clk 0:02:20]} 13. h3 {[%clk 0:02:28]}  Nc4 {[%clk 0:02:15]} 14. Be1 {[%clk 0:02:27]}  Bc5 {[%clk 0:01:56]} 15. Nd4 {[%clk 0:02:17]}  Ne5 {[%clk 0:01:53]} 16. g3 {[%clk 0:02:13]}  a6 {[%clk 0:01:48]} 17. Be2 {[%clk 0:02:12]}  Nf6 {[%clk 0:01:47]} 18. f4 {[%clk 0:02:11]}  Nc6 {[%clk 0:01:45]} 19. Nxe6 {[%clk 0:01:54]}  fxe6 {[%clk 0:01:45]} 20. Bc4 {[%clk 0:01:55]}  Rfe8 {[%clk 0:01:37]} 21. f5 {[%clk 0:01:51]}  Nd8 {[%clk 0:01:35]} 22. g4 {[%clk 0:01:38]}  Kh7 {[%clk 0:01:31]} 23. Bh4 {[%clk 0:01:27]}  exf5 {[%clk 0:00:35]} 24. exf5 {[%clk 0:01:28]}  Nc6 {[%clk 0:00:33]} 25. Bxf6 {[%clk 0:01:11]}  gxf6 {[%clk 0:00:34]} 26. Nd5 {[%clk 0:01:12]}  Rf8 {[%clk 0:00:34]} 27. Nxc7 {[%clk 0:01:11]}  Rac8 {[%clk 0:00:33]} 28. Ne6 {[%clk 0:01:11]}  Rfe8 {[%clk 0:00:31]} 29. h4 {[%clk 0:01:08]}  Ne5 {[%clk 0:00:30]} 30. Be2 {[%clk 0:01:05]}  Re7 {[%clk 0:00:24]} 31. g5 {[%clk 0:01:04]}  b5 {[%clk 0:00:16]} 32. gxf6 {[%clk 0:00:53]}  Rf7 {[%clk 0:00:16]} 33. Nxc5 {[%clk 0:00:53]}  dxc5 {[%clk 0:00:14]} 34. Rd6 {[%clk 0:00:54]}  Rc6 {[%clk 0:00:09]} 35. Rxc6 {[%clk 0:00:37]}  Nxc6 {[%clk 0:00:10]} 36. Rd1 {[%clk 0:00:34]}  Rxf6 {[%clk 0:00:10]} 37. Rd7+ {[%clk 0:00:33]}  Kh8 {[%clk 0:00:09]} 38. Bd3 {[%clk 0:00:25]}  Ne5 {[%clk 0:00:08]} 39. Rd5 {[%clk 0:00:25]}  Nxd3+ {[%clk 0:00:06]} 40. cxd3 {[%clk 0:00:26]}  Rc6 {[%clk 0:00:06]} 41. Kd2 {[%clk 0:00:24]}  Kg7 {[%clk 0:00:07]} 42. Ke3 {[%clk 0:00:23]}  Kf6 {[%clk 0:00:07]} 43. Kf4 {[%clk 0:00:21]}  c4 {[%clk 0:00:08]} 44. d4 {[%clk 0:00:19]}  b4 {[%clk 0:00:08]} 45. Rc5 {[%clk 0:00:16]}  Rxc5 {[%clk 0:00:06]} 46. dxc5 {[%clk 0:00:17]}  b3 {[%clk 0:00:05]} 47. axb3 {[%clk 0:00:15]}  cxb3 {[%clk 0:00:06]} 48. c6 {[%clk 0:00:16]}  Ke7 {[%clk 0:00:06]} 49. f6+ {[%clk 0:00:15]}  Kd6 {[%clk 0:00:01]} 50. f7 {[%clk 0:00:16]} 1-0


[Site "https://www.chess.com"]

[Event "Titled Tuesday Blitz October 31 Early 2023"]
[White "Javakhadze, Zurab"]
[Black "Leiva, Gianmarco"]
[WhiteFideId "13603647"]
[BlackFideId "3804399"]
[WhiteElo "2800"]
[BlackElo "2691"]
[Result "1-0"]
[Round "9"]
[TimeControl "180+1"]
[Date "2023.10.31"]
[WhiteClock "0:00:39"]
[BlackClock "0:00:05"]
[Board "24"]

1. Nf3 {[%clk 0:03:00]}  d5 {[%clk 0:02:53]} 2. g3 {[%clk 0:02:59]}  c5 {[%clk 0:02:54]} 3. Bg2 {[%clk 0:03:00]}  Nf6 {[%clk 0:02:54]} 4. O-O {[%clk 0:03:01]}  g6 {[%clk 0:02:55]} 5. d4 {[%clk 0:03:01]}  Bg7 {[%clk 0:02:55]} 6. c4 {[%clk 0:03:02]}  O-O {[%clk 0:02:43]} 7. cxd5 {[%clk 0:02:59]}  Nxd5 {[%clk 0:02:43]} 8. dxc5 {[%clk 0:02:59]}  Nc6 {[%clk 0:02:41]} 9. a3 {[%clk 0:02:49]}  Bf5 {[%clk 0:02:37]} 10. Nbd2 {[%clk 0:02:42]}  Nc7 {[%clk 0:02:16]} 11. Nc4 {[%clk 0:02:23]}  Qc8 {[%clk 0:02:13]} 12. Bd2 {[%clk 0:02:01]}  Na6 {[%clk 0:02:11]} 13. Be3 {[%clk 0:01:59]}  Nd8 {[%clk 0:01:43]} 14. Rc1 {[%clk 0:01:53]}  Bh3 {[%clk 0:00:42]} 15. b4 {[%clk 0:01:50]}  Bxg2 {[%clk 0:00:42]} 16. Kxg2 {[%clk 0:01:50]}  Ne6 {[%clk 0:00:35]} 17. Qd5 {[%clk 0:01:49]}  Rd8 {[%clk 0:00:35]} 18. Qe4 {[%clk 0:01:50]}  Nac7 {[%clk 0:00:31]} 19. Rfd1 {[%clk 0:01:47]}  Rb8 {[%clk 0:00:23]} 20. Na5 {[%clk 0:01:40]}  Nb5 {[%clk 0:00:21]} 21. Rxd8+ {[%clk 0:01:32]}  Qxd8 {[%clk 0:00:20]} 22. Nxb7 {[%clk 0:01:19]}  Qc8 {[%clk 0:00:18]} 23. c6 {[%clk 0:01:19]}  Nc3 {[%clk 0:00:09]} 24. Rxc3 {[%clk 0:00:59]}  Bxc3 {[%clk 0:00:08]} 25. b5 {[%clk 0:01:00]}  Ra8 {[%clk 0:00:04]} 26. Ng5 {[%clk 0:00:53]}  Bf6 {[%clk 0:00:02]} 27. Nxe6 {[%clk 0:00:51]}  fxe6 {[%clk 0:00:03]} 28. Nc5 {[%clk 0:00:48]}  Kf7 {[%clk 0:00:03]} 29. a4 {[%clk 0:00:43]}  h5 {[%clk 0:00:04]} 30. a5 {[%clk 0:00:43]}  h4 {[%clk 0:00:04]} 31. b6 {[%clk 0:00:42]}  h3+ {[%clk 0:00:04]} 32. Kxh3 {[%clk 0:00:42]}  axb6 {[%clk 0:00:05]} 33. axb6 {[%clk 0:00:42]}  Ra2 {[%clk 0:00:04]} 34. b7 {[%clk 0:00:40]}  Qc7 {[%clk 0:00:04]} 35. Qxe6+ {[%clk 0:00:40]}  Kg7 {[%clk 0:00:04]} 36. Qxa2 {[%clk 0:00:39]}  Qxg3+ {[%clk 0:00:05]} 1-0


[Site "https://www.chess.com"]

[Event "Titled Tuesday Blitz October 31 Early 2023"]
[White "Danielyan, Vahe"]
[Black "Prestia, Paris"]
[WhiteFideId "13304828"]
[BlackFideId "30925959"]
[WhiteElo "2756"]
[BlackElo "2631"]
[Result "1-0"]
[Round "9"]
[TimeControl "180+1"]
[Date "2023.10.31"]
[WhiteClock "0:01:02"]
[BlackClock "0:00:16"]
[Board "27"]

1. e4 {[%clk 0:03:00]}  c5 {[%clk 0:02:59]} 2. Nc3 {[%clk 0:03:00]}  Nc6 {[%clk 0:02:59]} 3. Bb5 {[%clk 0:02:59]}  Nd4 {[%clk 0:02:59]} 4. Bc4 {[%clk 0:03:00]}  e6 {[%clk 0:02:51]} 5. Nge2 {[%clk 0:03:00]}  Nf6 {[%clk 0:02:51]} 6. O-O {[%clk 0:03:00]}  a6 {[%clk 0:02:50]} 7. a4 {[%clk 0:02:59]}  Qc7 {[%clk 0:02:49]} 8. d3 {[%clk 0:02:59]}  Be7 {[%clk 0:02:48]} 9. Ba2 {[%clk 0:02:59]}  d6 {[%clk 0:02:19]} 10. Nxd4 {[%clk 0:02:58]}  cxd4 {[%clk 0:02:19]} 11. Ne2 {[%clk 0:02:59]}  e5 {[%clk 0:02:20]} 12. Ng3 {[%clk 0:02:58]}  h5 {[%clk 0:02:19]} 13. f4 {[%clk 0:02:52]}  Bg4 {[%clk 0:02:14]} 14. Qd2 {[%clk 0:02:47]}  Rc8 {[%clk 0:02:09]} 15. Bb3 {[%clk 0:02:46]}  h4 {[%clk 0:01:52]} 16. Nf5 {[%clk 0:02:45]}  Bxf5 {[%clk 0:01:51]} 17. exf5 {[%clk 0:02:46]}  Ng4 {[%clk 0:01:51]} 18. Qe2 {[%clk 0:02:44]}  Nh6 {[%clk 0:01:41]} 19. Qe4 {[%clk 0:02:31]}  Bf6 {[%clk 0:01:33]} 20. h3 {[%clk 0:02:22]}  Qd7 {[%clk 0:01:29]} 21. fxe5 {[%clk 0:02:20]}  dxe5 {[%clk 0:01:29]} 22. Bd2 {[%clk 0:02:19]}  Ng8 {[%clk 0:01:21]} 23. a5 {[%clk 0:02:17]}  Ne7 {[%clk 0:01:20]} 24. Bb4 {[%clk 0:02:04]}  Nc6 {[%clk 0:01:03]} 25. Bc5 {[%clk 0:01:59]}  Be7 {[%clk 0:01:01]} 26. Bxe7 {[%clk 0:01:57]}  Qxe7 {[%clk 0:01:01]} 27. f6 {[%clk 0:01:54]}  gxf6 {[%clk 0:01:02]} 28. Qg4 {[%clk 0:01:51]}  Rc7 {[%clk 0:00:50]} 29. Qg7 {[%clk 0:01:49]}  Qf8 {[%clk 0:00:46]} 30. Qxf6 {[%clk 0:01:46]}  Rh6 {[%clk 0:00:47]} 31. Qg5 {[%clk 0:01:41]}  f6 {[%clk 0:00:46]} 32. Qg4 {[%clk 0:01:37]}  Kd8 {[%clk 0:00:42]} 33. Rf2 {[%clk 0:01:25]}  Rg7 {[%clk 0:00:41]} 34. Qe6 {[%clk 0:01:24]}  Qe7 {[%clk 0:00:39]} 35. Qd5+ {[%clk 0:01:19]}  Qd7 {[%clk 0:00:39]} 36. Qc5 {[%clk 0:01:18]}  Qe7 {[%clk 0:00:36]} 37. Qc4 {[%clk 0:01:14]}  Rhg6 {[%clk 0:00:34]} 38. Raf1 {[%clk 0:01:08]}  Qd7 {[%clk 0:00:22]} 39. Qd5 {[%clk 0:01:07]}  Qxd5 {[%clk 0:00:21]} 40. Bxd5 {[%clk 0:01:08]}  Ke7 {[%clk 0:00:21]} 41. b4 {[%clk 0:01:03]}  Nxb4 {[%clk 0:00:19]} 42. Be4 {[%clk 0:01:04]}  Rh6 {[%clk 0:00:18]} 43. Rb1 {[%clk 0:01:04]}  Na2 {[%clk 0:00:13]} 44. Rxb7+ {[%clk 0:01:04]}  Kf8 {[%clk 0:00:14]} 45. Rb6 {[%clk 0:01:03]}  Nc3 {[%clk 0:00:13]} 46. Rbxf6+ {[%clk 0:01:01]}  Rxf6 {[%clk 0:00:14]} 47. Rxf6+ {[%clk 0:01:02]}  Ke7 {[%clk 0:00:15]} 48. Rxa6 {[%clk 0:01:01]}  Nxe4 {[%clk 0:00:16]} 49. Ra7+ {[%clk 0:01:01]}  Kf6 {[%clk 0:00:16]} 50. Rxg7 {[%clk 0:01:01]}  Kxg7 {[%clk 0:00:16]} 51. dxe4 {[%clk 0:01:02]} 1-0


[Site "https://www.chess.com"]

[Event "Titled Tuesday Blitz October 31 Early 2023"]
[White "Shapiro, Viktor"]
[Black "Hamitevici, Vladimir"]
[WhiteFideId "4175700"]
[BlackFideId "13902393"]
[WhiteElo "2538"]
[BlackElo "2750"]
[Result "1-0"]
[Round "9"]
[TimeControl "180+1"]
[Date "2023.10.31"]
[WhiteClock "0:00:18"]
[BlackClock "0:00:03"]
[Board "28"]

1. c4 {[%clk 0:03:00]}  d6 {[%clk 0:03:00]} 2. Nc3 {[%clk 0:03:01]}  e5 {[%clk 0:03:00]} 3. Nf3 {[%clk 0:03:01]}  f5 {[%clk 0:03:00]} 4. d3 {[%clk 0:03:02]}  Be7 {[%clk 0:03:00]} 5. g3 {[%clk 0:03:02]}  Nf6 {[%clk 0:02:59]} 6. Bg2 {[%clk 0:03:03]}  O-O {[%clk 0:03:00]} 7. Rb1 {[%clk 0:03:03]}  Qe8 {[%clk 0:02:58]} 8. b4 {[%clk 0:03:01]}  a6 {[%clk 0:02:57]} 9. a4 {[%clk 0:03:01]}  h6 {[%clk 0:02:49]} 10. b5 {[%clk 0:02:56]}  Nbd7 {[%clk 0:02:41]} 11. Ba3 {[%clk 0:02:41]}  axb5 {[%clk 0:02:38]} 12. Nxb5 {[%clk 0:02:35]}  Bd8 {[%clk 0:02:30]} 13. O-O {[%clk 0:02:32]}  Kh8 {[%clk 0:02:02]} 14. Bb4 {[%clk 0:02:20]}  Nb8 {[%clk 0:01:52]} 15. Bxd6 {[%clk 0:02:02]}  cxd6 {[%clk 0:01:47]} 16. Nxd6 {[%clk 0:02:03]}  Qe6 {[%clk 0:01:43]} 17. Nxc8 {[%clk 0:02:03]}  Qxc8 {[%clk 0:01:44]} 18. Nxe5 {[%clk 0:02:03]}  Nc6 {[%clk 0:01:33]} 19. Ng6+ {[%clk 0:02:03]}  Kg8 {[%clk 0:01:33]} 20. Nxf8 {[%clk 0:02:04]}  Kxf8 {[%clk 0:01:34]} 21. e3 {[%clk 0:02:01]}  Na5 {[%clk 0:01:22]} 22. Rb5 {[%clk 0:01:56]}  Qd7 {[%clk 0:01:13]} 23. Qc2 {[%clk 0:01:51]}  Rc8 {[%clk 0:01:10]} 24. Rfb1 {[%clk 0:01:50]}  b6 {[%clk 0:01:09]} 25. Bh3 {[%clk 0:01:40]}  g6 {[%clk 0:01:08]} 26. e4 {[%clk 0:01:38]}  Kg7 {[%clk 0:00:57]} 27. exf5 {[%clk 0:01:38]}  g5 {[%clk 0:00:57]} 28. Bg2 {[%clk 0:01:36]}  Nc6 {[%clk 0:00:56]} 29. Bxc6 {[%clk 0:01:15]}  Rxc6 {[%clk 0:00:57]} 30. Qc3 {[%clk 0:01:11]}  Rd6 {[%clk 0:00:55]} 31. R1b3 {[%clk 0:01:09]}  Kf7 {[%clk 0:00:45]} 32. a5 {[%clk 0:01:06]}  bxa5 {[%clk 0:00:42]} 33. Rb7 {[%clk 0:01:05]}  Bc7 {[%clk 0:00:42]} 34. c5 {[%clk 0:01:02]}  Rc6 {[%clk 0:00:41]} 35. Qc4+ {[%clk 0:01:02]}  Qd5 {[%clk 0:00:34]} 36. R3b6 {[%clk 0:00:54]}  Qxc4 {[%clk 0:00:31]} 37. dxc4 {[%clk 0:00:52]}  Rxc5 {[%clk 0:00:31]} 38. Ra6 {[%clk 0:00:46]}  g4 {[%clk 0:00:20]} 39. Raa7 {[%clk 0:00:42]}  Ne8 {[%clk 0:00:20]} 40. Rb5 {[%clk 0:00:40]}  Rxc4 {[%clk 0:00:20]} 41. Rbxa5 {[%clk 0:00:39]}  Nd6 {[%clk 0:00:18]} 42. Rd5 {[%clk 0:00:37]}  Ke7 {[%clk 0:00:16]} 43. Re5+ {[%clk 0:00:36]}  Kd7 {[%clk 0:00:14]} 44. f6 {[%clk 0:00:31]}  Rc3 {[%clk 0:00:06]} 45. Re7+ {[%clk 0:00:27]}  Kd8 {[%clk 0:00:06]} 46. Rh7 {[%clk 0:00:21]}  Bb6 {[%clk 0:00:04]} 47. Rh8+ {[%clk 0:00:18]}  Ne8 {[%clk 0:00:04]} 48. Re7 {[%clk 0:00:18]}  Rf3 {[%clk 0:00:03]} 49. Rhxe8# {[%clk 0:00:18]} 1-0


[Site "https://www.chess.com"]